Cogmind - Beta 15 *** ADVENTURER MODE // 2025.05.24 @ 16:47:08 Player: Vidali Result: Destroyed by Y-54 Guardian with Gatling Laser Performance ------------- Evolutions (0) 0 Regions Visited (3) 600 Robots Destroyed (28) 140 Value Destroyed (842) 842 Prototype IDs (15) 300 Alien Tech Used (0) 0 Bonus (0) 0 TOTAL SCORE: 1882 Bonus ------- None Cogmind --------- Core Integrity 0/250 Matter 300/300 Energy 78/100 System Corruption 2% Temperature Warm (120) Movement Rolling (115) Ox1 Location -7/Recycling Parts ------- > --- POWER (1) -------- (None) > --- PROPULSION (2) --- Advanced Treads Compact Wheel > --- UTILITY (2) ------ Medium Reactive Plating > --- WEAPON (2) ------- Subdweller Beam Cannon > --- INVENTORY (5) ---- Medium Storage Unit Gun Armor Subdweller Beam Cannon Power Maul Peak State ------------ > --- POWER ------------ Ion Engine > --- PROPULSION ------- Aluminum Leg Makeshift Leg > --- UTILITY ---------- Small Storage Unit Light Armor Plating > --- WEAPON ----------- Battle Cannon Slug Cannon > --- INVENTORY -------- Neutrino Core Subdweller Monowheel Medium Storage Unit Gun Armor Subdweller Beam Cannon Subdweller Beam Cannon Subdweller Machine Gun Subdweller Machine Gun [Rating: 16] Favorites ----------- Power Ion Engine Engine Ion Engine Power Core Neutrino Core Propulsion Aluminum Leg Treads Advanced Treads Leg Aluminum Leg Wheel Subdweller Monowheel Utility Small Storage Unit Storage Small Storage Unit Protection Light Armor Plating Weapon Subdweller Machine Gun Energy Gun Medium Laser Energy Cannon Subdweller Beam Cannon Ballistic Gun Subdweller Machine Gun Ballistic Cannon Battle Cannon Launcher Grenade Launcher Build | -11 -10 -10 -7 ------- Run | Yrd Mat Sub Rec Slots Evolved . | . . . . Power . | . . . . Propulsion . | . . . . Utility . | . . . . Weapon . | . . . . Parts Attached 26 | 6 . 16 4 Power 2 | 1 . 1 . Engine 1 | 1 . . . Core 1 | . . 1 . Reactor . | . . . . Propulsion 7 | 2 . 3 2 Treads 1 | . . . 1 Leg 3 | 2 . 1 . Wheel 3 | . . 2 1 Hover . | . . . . Flight . | . . . . Utility 5 | 1 . 3 1 Device . | . . . . Storage 1 | 1 . . . Processor . | . . . . Hackware . | . . . . Protection 4 | . . 3 1 Artifact . | . . . . Weapon 12 | 2 . 9 1 Energy Gun 2 | 2 . . . Energy Cannon 4 | . . 3 1 Ballistic Gun 3 | . . 3 . Ballistic Cannon 2 | . . 2 . Launcher 1 | . . 1 . Special Weapon . | . . . . Impact Weapon . | . . . . Slashing Weapon . | . . . . Piercing Weapon . | . . . . Special Melee Weapon . | . . . . Unidentified Prototypes . | . . . . Parts Lost 11 | . . 10 1 Power 1 | . . 1 . Propulsion 3 | . . 3 . Utility 2 | . . 2 . Weapon 5 | . . 4 1 Highest Loss Streak 5 | . . 5 1 To Critical Strikes . | . . . . Average Backups 5 | . 1 6 4 Power . | . . . . Propulsion . | . . . . Utility 1 | . . 1 2 Weapon 3 | . 1 3 2 Tool/Special . | . . . . Unused Backups 3 | . . . 3 Power . | . . . . Propulsion . | . . . . Utility 2 | . . . 2 Weapon 1 | . . . 1 Tool/Special . | . . . . Average Slot Usage (%) 82 | . 85 90 41 Engine 8 | . 14 9 . Core 2 | . . 4 . Treads 2 | . . . 12 Leg 18 | . 28 20 . Wheel 3 | . . 3 1 Storage 11 | . 14 13 . Protection 8 | . . 9 12 Energy Gun 6 | . 28 5 . Ballistic Gun 13 | . . 15 13 Ballistic Cannon 4 | . . 5 . Peak Build Rating 16 | 6 6 16 13 Average Rating 11 | 4 6 12 9 On Entrance 3 | . 6 6 3 Naked Turns . | . . . . Heaviest Build 32 | 14 14 28 32 Greatest Support 30 | 20 20 30 22 Greatest Overweight (x) 1 | 1 . 1 1 Average Overweight (x) . | . . . . Largest Inventory Capacity 8 | 8 8 8 5 Average Capacity 7 | 7 8 7 5 Most Carried 8 | . 3 8 5 Average Carried 5 | . 1 6 4 Final Capacity 8 | 8 8 5 5 Final Carried 4 | . 3 4 4 Class Distribution -------------------- 100% | Mutant Dominant Class ---------------- Mutant | -10/Materials Mutant | -10/Subcaves Mutant | -7/Recycling Resources | -11 -10 -10 -7 ----------- Run | Yrd Mat Sub Rec Matter Collected 780 | 260 . 466 54 Remotely . | . . . . Salvage Created 753 | . 138 398 217 Parts 45 | . 10 25 10 Haulers Intercepted . | . . . . Recyclers Shooed 1 | . . . 1 Parts Field Recycled . | . . . . Retrieved Matter . | . . . . Parts Self-Destructed 19 | . . 19 . Prevented . | . . . . Kills | -11 -10 -10 -7 ------- Run | Yrd Mat Sub Rec Combat Hostiles Destroyed 24 | . 4 17 3 Guns 16 | . 2 13 1 Cannons 4 | . . 2 2 AOE 4 | . 2 2 . Classes Destroyed 8 | . 3 3 2 Recycler 1 | . . . 1 Turret 2 | . . 2 . Watcher 1 | . 1 . . Swarmer 9 | . 2 7 . Grunt 2 | . 2 . . Sentry 2 | . . 1 1 Programmer 2 | . . . 2 Subdweller 9 | . . 9 . Best Kill Streak 4 | . 2 4 2 Combat Bots Only 4 | . 2 4 2 Max Kills in Single Turn 2 | . 2 2 1 Gunslinging 1 | . . 1 . Exploded 2 | . 2 2 . Melee . | . . . . Uniques/NPCs Destroyed . | . . . . Combat | -11 -10 -10 -7 -------- Run | Yrd Mat Sub Rec Hostile Shots Fired 222 | . 8 180 34 Missed 73 | . 3 62 8 Hits 149 | . 5 118 26 Projectile 149 | . 5 118 26 AOE 1 | . . 1 . Critical Strikes 5 | . . 5 . Damage Taken 1803 | . 67 1541 195 Core 254 | . 12 202 40 Absorbed by Shields . | . . . . Ignored by Resistances 537 | . 21 439 77 Core Remaining (%) 100 | 100 . . . Volleys Fired 102 | . 6 85 11 Largest 2 | . 2 2 2 Hottest 110 | . 90 110 110 Shots Fired 165 | . 12 134 19 Gun 105 | . 12 85 8 Cannon 55 | . . 44 11 Launcher 5 | . . 5 . Special . | . . . . Kinetic 88 | . . 80 8 Thermal 49 | . 6 32 11 Explosive 5 | . . 5 . Electromagnetic 23 | . 6 17 . Robot Hit Streak 16 | . 5 16 13 Robot Miss Streak 3 | . 1 3 1 Penetration Max . | . . . . Secondary Targets 2 | . . 2 . Max Gunslinging Chain 1 | . . 1 . Shots Hit Robots 117 | . 9 92 16 Core Hits 38 | . 7 26 5 Critical Kills . | . . . . Critical Parts Destroyed 1 | . . 1 . Critical Strikes 4 | . . 4 . Destroy 3 | . . 3 . Blast 1 | . . 1 . Melee Attacks . | . . . . Impact . | . . . . Slashing . | . . . . Piercing . | . . . . Sneak Attacks . | . . . . Combat Hostiles . | . . . . Follow-up Attacks . | . . . . Damage Inflicted 2642 | . 239 1977 426 Guns 1405 | . 123 1126 156 Cannons 914 | . . 644 270 Explosions 323 | . 116 207 . Melee . | . . . . Ramming . | . . . . Kinetic 1448 | . . 1292 156 Thermal 744 | . 153 321 270 Explosive 207 | . . 207 . Electromagnetic 243 | . 86 157 . Impact . | . . . . Slashing . | . . . . Piercing . | . . . . Highest Corruption 2 | . . . 2 Average Corruption 1 | . . . 1 Corruption Purged . | . . . . Corruption Blocked . | . . . . Overload Shots . | . . . . Overflow Damage 77 | . 13 40 24 Projectiles 64 | . . 40 24 Explosions 13 | . 13 . . Melee . | . . . . Knockbacks 5 | . . 5 . Impact . | . . . . Kinetic 5 | . . 5 . Secondary . | . . . . Self-Inflicted Damage 55 | . 24 31 . Shots 4 | . 1 3 . Rammed . | . . . . Targets Rammed . | . . . . Kicked . | . . . . Crushed . | . . . . Highest Temperature 191 | . 156 191 168 Average Temperature 62 | . 63 46 75 Received Heat Transfer 791 | . 24 743 24 Siege Activations . | . . . . Martial Activations . | . . . . Shielding Activations . | . . . . Robots Disrupted . | . . . . Combat Hostiles . | . . . . Robots Corrupted . | . . . . Combat Hostiles . | . . . . Parts Fried . | . . . . Impact Corruptions . | . . . . Robots Melted . | . . . . Combat Hostiles . | . . . . Parts Melted . | . . . . Heat Transferred 1273 | . 311 629 333 Parts Sabotaged . | . . . . Parts Stolen . | . . . . Parts Stripped . | . . . . Power Chain Reactions 2 | . 2 . . Alert | -11 -10 -10 -7 ------- Run | Yrd Mat Sub Rec Maximum Alert Level . | . . . . Low Security (%) 100 | 100 100 . 100 Level 1 . | . . . . Level 2 . | . . . . Level 3 . | . . . . Level 4 . | . . . . Level 5 . | . . . . High Security . | . . . . Max Security . | . . . . Peak Influence 99 | . 99 . 46 Initial 12 | . . . 12 Average 18 | . 32 . 9 Influence Increases 594 | . 146 270 178 Destroy 0b10 Robot/C 340 | . 80 200 60 Destroy 0b10 Robot/NC 10 | . 5 . 5 Destroy Leader 32 | . 22 10 . Successful Hack 72 | . 22 . 50 Select Force Hacks 60 | . . . 60 Disable Machine 9 | . 9 . . Destroy Structure 11 | . 8 . 3 Lose Combat Pursuer 60 | . . 60 . Influence Decreases 554 | . 146 240 168 Entered New Map 18 | . . . 18 Time Decay 526 | . 146 230 150 Lost Part 10 | . . 10 . Squads Dispatched 1 | . 1 . . Investigation 1 | . 1 . . Extermination . | . . . . Reinforcement . | . . . . Assault . | . . . . Garrison . | . . . . Intercept . | . . . . Searches Triggered . | . . . . Construction Impeded . | . . . . Haulers Reinforced . | . . . . Active Scanning Responses . | . . . . Cargo Convoy Interrupts . | . . . . Stealth | -11 -10 -10 -7 --------- Run | Yrd Mat Sub Rec Distress Signals . | . . . . Communications Jammed . | . . . . Distress Signals . | . . . . Times Spotted 43 | . 7 29 7 Peak Tracking Total 6 | . 3 6 4 Tactical Retreats 3 | . . 3 . Traps | -11 -10 -10 -7 ------- Run | Yrd Mat Sub Rec Traps Triggered 1 | . . 1 . Indirectly . | . . . . Trap Hack Attempts . | . . . . Triggered . | . . . . Disarmed . | . . . . Reprogrammed . | . . . . Reused . | . . . . Traps Extracted . | . . . . Installed . | . . . . Triggered . | . . . . Machines | -11 -10 -10 -7 ---------- Run | Yrd Mat Sub Rec Machines Disabled 4 | . 1 3 . Max in Single Turn 1 | . 1 1 . Machines Repaired . | . . . . Machines Dismantled . | . . . . Machines Sabotaged . | . . . . Overloaded Fab Kills . | . . . . Hacking | -11 -10 -10 -7 --------- Run | Yrd Mat Sub Rec Machines Accessed 16 | . 7 2 7 Terminals 12 | . 7 . 5 Fabricators . | . . . . Repair Stations . | . . . . Recycling Units 2 | . . . 2 Scanalyzers . | . . . . Garrison Access . | . . . . Total Hacks 34 | . 19 4 11 Successful 18 | . 9 4 5 Failed 16 | . 10 . 6 Catastrophic 3 | . 1 . 2 Database Lockouts . | . . . . Manual 8 | . 5 . 3 Terminals 27 | . 19 . 8 Fabricators . | . . . . Repair Stations . | . . . . Recycling Units 3 | . . . 3 Scanalyzers . | . . . . Garrison Access . | . . . . Terminal Hacks 16 | . 9 4 3 Record 4 | . 1 3 . Robot Analysis 4 | . 2 . 2 Prototype ID Bank 2 | . 2 . . Locate Traps 2 | . 2 . . Hauler Manifests 1 | . 1 . . Registered Components 1 | . 1 . . Zone Layout 1 | . . . 1 Proto ID Catalog 1 | . . 1 . Fabricator Hacks . | . . . . Repair Station Hacks . | . . . . Recycling Unit Hacks . | . . . . Scanalyzer . | . . . . Garrison Access Hacks . | . . . . Unauthorized Hacks 2 | . . . 2 Terminals . | . . . . Fabricators . | . . . . Repair Stations . | . . . . Recycling Units 2 | . . . 2 Tunnel 2 | . . . 2 Scanalyzers . | . . . . Garrison Access . | . . . . Data Cores Recovered . | . . . . Used . | . . . . Hacking Detections 12 | . 6 . 6 Full Trace Events 1 | . 1 . . Feedback Events . | . . . . Feedback Blocked . | . . . . Robot Schematics Acquired . | . . . . Robots Built . | . . . . Authchips . | . . . . Time . | . . . . Total Robot Build Rating . | . . . . Part Schematics Acquired . | . . . . Parts Built . | . . . . Authchips . | . . . . Time . | . . . . Total Part Build Rating . | . . . . Parts Repaired . | . . . . Time . | . . . . Parts Recycled . | . . . . Recycled Matter . | . . . . Retrieved Matter . | . . . . Retrieved Components . | . . . . Parts Scanalyzed . | . . . . Part Schematics Acquired . | . . . . Parts Damaged . | . . . . Bothacking | -11 -10 -10 -7 ------------ Run | Yrd Mat Sub Rec Used RIF Installer . | . . . . Robots Hacked . | . . . . Non-combat . | . . . . Combat . | . . . . Robot Hacks Applied . | . . . . Relay Couplers Released . | . . . . Fabnet Peak Effective % . | . . . . Robots Rewired 1 | . . . 1 Allies Hacked . | . . . . Hacks Repelled . | . . . . Allies | -11 -10 -10 -7 -------- Run | Yrd Mat Sub Rec Total Allies 1 | . . . 1 Largest Group . | . . . . Highest-Rated Group . | . . . . Highest-Rated Ally . | . . . . Total Orders . | . . . . Ally Attacks . | . . . . Total Damage . | . . . . Kills . | . . . . Allies Corrupted . | . . . . Allies Melted . | . . . . Intel | -11 -10 -10 -7 ------- Run | Yrd Mat Sub Rec Active Infowar (turns) . | . . . . Robot Analysis Total 4 | . 2 . 2 Derelict Logs Recovered 1 | . . 1 . Drone Launches . | . . . . Drone Recoveries . | . . . . Exploration | -11 -10 -10 -7 ------------- Run | Yrd Mat Sub Rec Turns Passed 3973 | 46 426 2871 630 Spaces Moved 2694 | 33 325 2033 303 Core 77 | 4 . 15 58 Treads 218 | . . . 218 Legs 1728 | 29 325 1374 . Wheels 671 | . . 644 27 Hover . | . . . . Flight . | . . . . Fastest Speed 50 | 50 120 100 100 Average Speed 132 | 114 120 126 190 Slowest Speed 225 | 120 120 190 225 Overloaded Moves . | . . . . Propulsion Burnouts . | . . . . Robots Hopped . | . . . . Potential Cave-ins . | . . . . Cave-ins Triggered . | . . . . Exploration Rate (%) 58 | 3 61 98 73 Regions Visited 3 Branch Regions 2 Pre-discovered Areas 3 | . . 1 2 Known Exits Taken . | . . . . Unknown Exits Taken 3 | 1 1 1 . Scrap Searched 14 | . . 14 . Spaces Dug . | . . . . Terrain Destroyed 27 | . 7 19 1 Melee . | . . . . Projectile 3 | . . 2 1 AOE 24 | . 7 17 . Terrain Rammed . | . . . . Walls Destroyed . | . . . . Machines Disabled . | . . . . Actions | -11 -10 -10 -7 --------- Run | Yrd Mat Sub Rec Total 2920 | 38 349 2197 336 Wait 52 | . 16 29 7 Move 2691 | 32 324 2032 303 Hop . | . . . . Pick Up 20 | . 3 15 2 Fast Attach 10 | 6 . 2 2 Attach 13 | . . 11 2 Detach 1 | . . 1 . Swap 7 | . . 7 . Drop 13 | . . 13 . Fire 102 | . 6 85 11 Melee . | . . . . Ram . | . . . . Kick . | . . . . Crush . | . . . . Escape Stasis . | . . . . Rewire 9 | . . . 9 Trap . | . . . . Miscellaneous 2 | . . 2 . Route ------- -11/Scrapyard -10/Materials (discovered 4 exits: [*Mat] / [*Min x2] / *Sub) -10/Subcaves (discovered 3 exits: [*Mat x2] / *Rec) -7/Recycling History --------- Turn | Location | Event 5 | -11/Scrapyard | Discovered new exit (range 15) 47 | -11/Scrapyard | Entered Materials 135 | -10/Materials | Discovered new exit (range 16) 301 | -10/Materials | Discovered new exit (range 12) 307 | -10/Materials | Discovered new exit (range 15) 314 | -10/Materials | Build established: Mutant 441 | -10/Materials | Discovered new exit (range 11) 473 | -10/Materials | Entered Subcaves 522 | -10/Subcaves | Learned location of Zion (-7) 522 | -10/Subcaves | Met a Zionite searching for "candidates" 593 | -10/Subcaves | Ambushed by swarm of Subdwellers 609 | -10/Subcaves | Ambushed by angry Subdweller bent on revenge 609 | -10/Subcaves | Ambushed by Subdweller buried in earth 640 | -10/Subcaves | Lost 5 allies 929 | -10/Subcaves | Shifting Twisted Machinery released Sub. Beam Cannon 942 | -10/Subcaves | Shifting Twisted Machinery released Sub. Machine Gun 969 | -10/Subcaves | Visited Clippyterm 972 | -10/Subcaves | Learned Factory emergency access door positions 1348 | -10/Subcaves | Discovered new exit (range 11) 1473 | -10/Subcaves | A swath of the cavern ceiling suddenly collapsed 1522 | -10/Subcaves | Discovered new exit (range 6) 1641 | -10/Subcaves | Shifting Twisted Machinery released Sub. Laser 1645 | -10/Subcaves | Shifting Twisted Machinery released Battle Rifle 2072 | -10/Subcaves | Visited 4L-MR0's lab 2095 | -10/Subcaves | Found Gun Armor 2145 | -10/Subcaves | Learned Materials emergency access door positions 2456 | -10/Subcaves | Core integrity fell below 50% 2500 | -10/Subcaves | Lost 5 parts (1p1n1u2w) 3304 | -10/Subcaves | Discovered new exit (range 14) 3311 | -10/Subcaves | Core integrity fell below 20% 3344 | -10/Subcaves | Entered Recycling 3974 | -7/Recycling | Destroyed by Y-54 Guardian with Gatling Laser Last Messages --------------- 03914_ Destroyed Tractor Beam. 03917_ R-06 Scavenger destroyed. 03921_ U-05 Engineer builds a Door. 03922_ Acquired Com. Wheel. 03924_ Acquired 18 matter. 03935_ R-06 Scavenger collects Com. Wheel. 03950_ Attempting to rewire U-05 Engineer. 03956_ P-60 Hacker springs to life. 03962_ Destroyed Shock Rifle. 03962_ Destroyed Remote Datajack. 03963_ Sub. Machine Gun destroyed. 03965_ P-60 Hacker destroyed. 03967_ Destroyed Shock Rifle. 03968_ Y-54 Guardian springs to life. 03969_ P-60 Hacker destroyed. 03969_ Y-54 Guardian springs to life. 03969_ I-36 Angel springs to life. 03971_ R-06 Scavenger collects Imp. Heat Sink. 03971_ Attempting to rewire G-47 Trooper. 03972_ G-47 Trooper rewired. Map ----- +----------------------------------------------------+ | #?????????????????????????????????????????? | | #?????????????????????????????????????????? | | ##########????????????????????????????????? | | # #????????????????????????????????? | | + #????????????????????????????????? | | # """#????????????????????????????????? | | # """#????????????????????????????????? | | # """#????????????????????????????????? | | # """#????????????????????????????????? | | # """#????????????????????????????????? | | # #????????????????????????????????? | | # #??????###???????????????????????? | | ###/############# #####???????????????????? | | #???????????????????? | | [ #???????????????????? | | =% #???????????????????? | | ##########+######## #???????????????????? | | ???# % #?# #???????????????????? | | ???# #?# #???????????????????? | | ???# #?# #???????????????????? | | ???# #?# ########????????????? | | ???# ### # % % #????????????? | | ???# #!! #a ] #????????????? | | ???# #!! # !* #????????????? | | ???# #!! #%rg #????????????? | | ???# ### # g@= l#????????????? | | ???# ?# # Y= #????????????? | | ???# ### Y uu g#????????????? | | ???# #?# i# [Y #????????????? | | ???## ###########?# # u % #????????????? | | ????##???????????# # g] #????????????? | | ?????????????????## #Yag ib#????????????? | | ??????????????????# #l Y #????????????? | | ?????????????????? #/ au #????????????? | | ????????????????? ########????????????? | | ???????????????? ????????????????????? | | ????????????????### ????????????????????? | | ??????????????????# ????????????????????? | | ??????????????????# ????????????????????? | | ??????????????????# ????????????????????? | | ??????????????????# ????????????????????? | | ??????????????????? ????????????????????? | | ??????????????????????????????????????????? | | ??????????????????????????????????????????? | | ??????????????????????????????????????????? | | ??????????????????????????????????????????? | | ??????????????????????????????????????????? | | ??????????????????????????????????????????? | | ??????????????????????????????????????????? | | ??????????????????????????????????????????? | +----------------------------------------------------+ Best States ------------- Heat Dissipation 25 Energy Generation 19 Energy Capacity 315 Matter Stores 300 Matter Capacity 300 Sight Range 16 Terrain Scan Density 10 Armor Coverage 800 Resistance: KI 50 Resistance: TH 20 Resistance: EX 20 Resistance: EM 20 Resistance: I 20 Resistance: S 20 Resistance: P 20 Evasion (%) 55 Recoil Reduction 1 Offensive Hacking 10 Item Schematics ----------------- None Robot Schematics ------------------ None Fabricated ------------ Nothing Repaired ---------- Nothing Alien Tech Used ----------------- None Achievements -------------- None Challenges ------------ None Game ------ Seed RelayNovaRifle Manual? 0 Play Time 00:24:30 Cumulative 265.3 hours Start 2025.05.24 @ 16:22:36 End 2025.05.24 @ 16:47:08 Sessions 1 Manual Loads 0 Difficulty Adventurer Special Mode None Game No. 152 Rogue 94 Adventurer 58 Explorer 0 Win Type - Total 13 Types 10/0/0/3/0/0/0/0/0/0 Lore% 64 Gallery% 68 Achievement% 65 Wizard Run 0 Options --------- Layout 2 ASCII 0 Keyboard 0 Movement Mouse Keybinds 0 Fullscreen 1 Font 32/SmallcapsGlow Map View 50x44 Zoom Use 0% Tactical HUD 1 Map Filters NONE Filters NONE Steam 1 RUN: 966fcb3b-6d59-48b3-93ca-437b9756c4b7